bitfinex-derivatives/quotes_ETHF0:USTF0_20260203
["timestamp","ask_amount","ask_price","bid_price","bid_amount"]
[1770135905571,2.43302635,2260.1,2258.4,7.027]
[1770135906169,2.43302635,2260.1,2258.3,2.56317315]
[1770135906367,2.43302635,2259.9,2258.3,0.00565896]
[1770135906572,2.43302635,2259.7,2258.3,0.00565896]
[1770135906877,2.43302635,2259.3,2257.0,2.33591419]
[1770135907081,2.43302635,2258.6,2257.0,2.33591419]
[1770135907281,2.43302635,2258.4,2257.0,2.33591419]
[1770135907782,2.43302635,2258.2,2257.0,0.00449259]
[1770135909076,2.43302635,2258.0,2257.0,0.00449259]
[1770135909280,2.43302635,2257.8,2255.0,0.22193]
[1770135909478,2.56661914,2257.4,2255.2,2.33591419]
[1770135909676,2.43302635,2257.2,2255.4,2.33591419]
[1770135909883,2.43302635,2257.2,2255.6,2.33591419]
[1770135910080,2.06036503,2257.1,2255.9,9.09742838]
[1770135910286,2.43302635,2257.0,2255.9,0.00487957]
[1770135910683,2.43302635,2257.0,2256.0,6.76151419]
[1770135910985,2.06038592,2256.9,2256.3,6.76151419]
[1770135911185,2.43302635,2256.8,2255.9,0.00487957]
[1770135911483,0.15713301,2256.7,2256.3,6.76151419]
[1770135911683,0.15712605,2257.1,2256.4,2.33591419]
[1770135911985,2.43302635,2257.6,2256.4,2.33591419]
[1770135911986,2.43302635,2257.6,2256.5,9.09742838]
[1770135912487,2.43302635,2257.6,2256.6,6.76151419]
[1770135912687,2.45130971,2257.5,2256.4,2.598]
[1770135913284,2.45130971,2257.5,2256.4,4.93391419]
[1770135913486,2.45130971,2257.5,2256.6,6.76151419]
[1770135913788,2.45130971,2257.5,2256.4,4.93391419]
[1770135913991,2.45130971,2257.5,2256.6,6.76151419]
[1770135914489,0.01828336,2257.5,2256.5,2.33591419]
[1770135914688,2.45130971,2257.5,2256.4,2.598]
[1770135914994,40.8,2257.4,2255.0,2.54941859]
[1770135915286,6.52005294,2257.3,2255.0,2.54941859]
[1770135915482,3.84938352,2257.2,2255.1,2.54941859]
[1770135915683,3.84938352,2257.1,2255.1,2.54941859]
[1770135915890,0.01444207,2256.9,2255.1,2.54941859]
[1770135916091,0.01444207,2256.7,2255.1,2.55468931]
[1770135916491,0.32882651,2256.6,2255.1,2.55468931]
[1770135916789,0.01444207,2256.5,2255.1,2.55468931]
[1770135917188,0.62878282,2256.5,2255.1,2.55468931]
[1770135917388,0.62878282,2256.5,2255.4,2.54219755]
[1770135917590,0.01444207,2256.9,2255.4,2.54219755]
[1770135917790,0.01444207,2256.7,2255.4,2.54219755]
[1770135918086,0.62865741,2256.6,2255.1,2.55468931]
[1770135918292,0.62865741,2256.6,2255.6,2.54941859]
[1770135918688,1.5886804,2256.9,2255.6,2.54941859]
[1770135918988,0.62865741,2257.3,2255.8,2.54941859]
[1770135919291,0.31446107,2257.0,2255.8,2.54941859]
[1770135919491,1.27456064,2257.3,2255.8,2.54941859]
[1770135919788,1.27456064,2257.3,2256.0,2.54941859]
[1770135919991,1.27456064,2257.3,2256.2,2.54941859]
[1770135920290,0.94295133,2257.5,2255.7,2.54941859]
[1770135920690,0.0047627,2257.6,2255.7,2.54941859]
[1770135920886,1.43191655,2257.5,2255.7,2.54941859]
[1770135921086,1.43191655,2257.5,2255.7,2.77127859]
[1770135921792,1.43191655,2257.5,2256.1,2.55221349]
[1770135922193,1.43191655,2257.5,2256.5,2.55709306]
[1770135922386,1.43191655,2257.5,2256.2,9.58521349]
[1770135922589,1.43191655,2257.5,2256.3,2.55221349]
[1770135923685,1.43191655,2257.5,2255.2,2.55221349]
[1770135923890,4.58993471,2256.5,2255.1,0.00527072]
[1770135924195,4.8737633,2256.4,2255.1,0.00527072]
[1770135924387,2.35924504,2256.3,2255.1,0.00527072]
[1770135924791,1.74635674,2256.2,2255.1,0.00527072]
[1770135925294,4.10560178,2256.2,2255.1,0.00527072]
[1770135925489,2.35924504,2256.1,2255.1,0.00527072]
[1770135925894,2.51648256,2256.0,2255.1,0.00527072]
[1770135926194,2.36391439,2256.0,2254.6,6.90425034]
[1770135926590,0.78617366,2255.9,2254.7,2.47125034]
[1770135926792,0.78617366,2255.9,2255.1,2.47125034]
[1770135926993,0.78617366,2255.9,2255.1,0.00547948]
[1770135927394,3.1454187,2255.9,2255.1,0.00547948]
[1770135927589,2.35924504,2255.8,2254.6,4.433]
[1770135927793,2.35924504,2255.8,2254.6,6.90425034]
[1770135927989,5.01229588,2255.7,2254.6,6.90912991]
[1770135928392,5.01229588,2255.7,2254.9,2.47125034]
[1770135928599,5.01229588,2255.7,2254.9,2.47609895]
[1770135928801,0.97849864,2255.9,2255.0,0.00487957]
[1770135929003,0.00466935,2256.0,2254.9,2.47609895]
[1770135929301,5.04709746,2255.9,2254.9,2.47609895]
[1770135930002,2.35924504,2255.8,2254.9,0.00484861]
[1770135930300,2.67378283,2255.7,2254.9,0.00484861]
[1770135930503,2.67378283,2255.7,2254.0,2.47125034]
[1770135930696,2.67378283,2255.7,2253.9,0.22196456]
[1770135930697,2.35924504,2255.5,2253.9,0.22196456]
[1770135930896,2.35924504,2255.2,2253.2,2.47125034]
[1770135931098,2.35924504,2255.2,2253.4,2.47612991]
[1770135931099,2.35924504,2255.1,2253.4,2.47612991]
[1770135931294,2.35924504,2255.0,2253.7,2.47125034]
[1770135931500,5.14270536,2255.1,2253.9,2.47125034]
[1770135931702,3.36584256,2254.9,2253.9,2.47125034]
[1770135931899,2.35924504,2255.1,2253.9,2.47125034]
[1770135932100,2.35924504,2255.1,2253.6,2.47125034]
[1770135932295,2.35924504,2255.1,2253.3,2.601]
[1770135932296,4.92517745,2255.0,2254.0,2.47125034]
[1770135932502,4.92517745,2255.0,2254.2,2.47125034]
[1770135932798,3.74078939,2255.2,2254.4,2.47125034]
[1770135933005,2.29501004,2254.9,2254.2,2.601]
[1770135933198,3.11132314,2255.5,2254.6,0.00487957]
[1770135933501,1.25914893,2255.3,2254.3,2.47612991]
[1770135933696,3.83280712,2255.5,2254.4,0.00487957]
[1770135933896,2.35924504,2255.5,2254.4,0.00487957]
[1770135934094,2.35924504,2255.5,2254.3,2.47125034]
[1770135934095,2.35924504,2255.9,2255.0,0.00487957]
[1770135934298,4.6610241,2255.5,2254.8,2.47612991]
[1770135934498,2.35924504,2256.3,2255.1,2.47125034]
[1770135934695,0.74558134,2255.4,2255.1,2.47125034]
[1770135934896,0.74558134,2255.4,2255.1,2.47612991]
[1770135935097,0.30974191,2255.7,2255.3,2.47612991]
[1770135935297,3.40253817,2255.8,2254.4,2.47125034]
[1770135935497,1.5321176,2255.9,2254.4,2.47125034]
[1770135935701,2.35924504,2256.3,2254.4,2.47125034]
[1770135936007,0.22173,2257.1,2254.3,4.435]
[1770135936008,2.35924504,2256.9,2255.2,2.47125034]
[1770135936203,2.35924504,2256.9,2255.4,2.47125034]
[1770135936404,2.35924504,2256.9,2255.6,2.47125034]
[1770135936804,2.35924504,2257.3,2255.6,2.47125034]
[1770135937003,0.00366577,2257.3,2255.8,2.69310034]
[1770135937204,2.36291081,2257.3,2255.8,2.69310034]
[1770135938106,0.00366577,2257.3,2256.1,0.22182]
[1770135938308,2.35924504,2257.7,2256.3,2.47125034]
[1770135938608,2.35924504,2257.7,2256.5,2.47125034]
[1770135939309,2.36274277,2257.7,2256.5,2.47125034]
[1770135939908,2.35924504,2257.5,2255.6,2.47460206]
[1770135940111,2.35924504,2257.5,2255.7,2.47125034]
[1770135940611,2.35924504,2257.5,2255.9,2.47125034]
[1770135941607,2.35924504,2257.4,2255.9,2.69310034]
[1770135941811,0.00349773,2257.7,2255.6,2.60435172]
[1770135941812,2.36274277,2257.7,2256.1,2.69307034]
[1770135942013,2.36274277,2257.7,2256.3,2.47125034]
[1770135942312,2.36274277,2257.7,2256.4,5.07225034]
[1770135942502,2.36274277,2257.7,2256.5,2.47125034]
[1770135943009,2.36274277,2257.7,2256.3,4.434]
[1770135943010,2.35924504,2257.5,2256.3,4.434]
[1770135943312,2.66898695,2257.5,2256.3,4.434]
[1770135943508,0.30974191,2257.4,2256.3,6.90525034]
[1770135943904,2.36274277,2257.7,2256.4,2.47125034]
[1770135944104,2.35924504,2257.5,2256.4,2.47125034]
[1770135944312,2.66898695,2257.5,2256.4,2.47125034]
[1770135944715,2.35924504,2257.5,2256.4,2.47125034]
[1770135945014,0.00349773,2257.7,2256.4,2.47125034]
[1770135945412,2.36274277,2257.7,2256.4,2.47125034]
[1770135945716,2.07362158,2258.3,2257.1,2.47125034]
[1770135946015,2.35924504,2259.1,2257.8,2.36843267]
[1770135946216,2.66898695,2258.8,2257.9,2.6]
[1770135946414,2.35924504,2259.3,2257.9,4.96843267]
[1770135946615,2.35924504,2259.2,2258.0,2.36843267]
[1770135946814,2.3634166,2259.2,2258.0,2.37206815]
[1770135947312,0.00417156,2259.2,2258.0,2.37206815]
[1770135947516,0.00417156,2259.2,2258.1,2.6]
[1770135947712,2.3634166,2259.2,2258.0,2.60363548]
[1770135948017,2.66898695,2259.0,2258.0,2.60363548]
[1770135948416,2.66898695,2259.0,2258.0,4.8913418]
[1770135948908,0.00417156,2259.2,2258.0,4.8913418]
[1770135948909,2.3634166,2259.2,2258.0,4.8913418]
[1770135949108,2.66898695,2259.1,2258.0,4.8913418]
[1770135949515,0.30974191,2259.0,2258.0,4.8913418]
[1770135949710,2.35924504,2259.1,2258.1,2.28770632]
[1770135950018,0.00417156,2259.2,2258.1,2.28770632]
[1770135950217,2.35924504,2260.3,2258.9,2.31814481]
[1770135950414,2.33839412,2261.1,2259.1,2.30984361]
[1770135950610,2.33839412,2261.1,2259.3,2.30984361]
[1770135950916,2.33839412,2260.6,2259.3,4.90984361]
[1770135951313,2.33839412,2260.4,2259.3,2.6]
[1770135951618,0.30974191,2260.5,2259.4,2.30984361]
[1770135951922,0.0054956,2260.6,2259.4,2.30984361]
[1770135952412,4.432,2261.9,2259.3,2.6]
[1770135952614,2.33839412,2261.6,2259.7,2.34724358]
[1770135952815,2.33839412,2262.0,2260.5,2.13580397]
[1770135953113,2.33839412,2262.0,2259.7,2.23068967]
[1770135953114,2.33839412,2262.0,2260.7,2.13580397]
[1770135953319,2.33839412,2262.0,2260.6,7.25138]
[1770135953320,2.33839412,2262.0,2260.8,4.73480397]
[1770135953517,0.00317418,2262.0,2260.9,2.04413089]
[1770135953814,2.39140236,2263.8,2261.5,2.04413089]
[1770135954013,2.39140236,2263.6,2261.7,2.04413089]
[1770135954214,2.39140236,2263.6,2262.1,2.04413089]
[1770135954418,2.39140236,2264.0,2262.1,2.04413089]
[1770135954613,2.39482407,2264.0,2262.5,2.04413089]
[1770135954914,2.39482407,2264.0,2262.6,7.028]
[1770135955117,2.39140236,2263.8,2262.7,7.028]
[1770135955418,2.39140236,2263.6,2262.8,2.598]
[1770135955614,0.35414823,2264.8,2262.8,2.598]
[1770135955615,2.39140236,2265.4,2262.9,2.04413089]
[1770135955815,2.39140236,2264.9,2263.1,1.73438898]
[1770135956617,2.39140236,2264.9,2263.2,7.026]
[1770135956814,2.3958157,2264.9,2263.2,7.026]
[1770135957121,2.3958157,2264.9,2263.3,2.597]
[1770135957917,2.39140236,2264.7,2262.5,0.00551387]
[1770135958116,2.39140236,2264.7,2262.6,2.597]
[1770135958315,2.39140236,2264.6,2262.6,2.597]
[1770135958512,2.39140236,2265.0,2263.0,1.7608126]
[1770135958712,2.39140236,2265.4,2263.2,1.7608126]
[1770135958914,2.39140236,2265.4,2263.8,1.7608126]
[1770135959219,2.39140236,2265.4,2263.9,7.022]
[1770135959716,2.39450191,2265.4,2263.9,7.022]
[1770135960414,2.39450191,2265.4,2263.6,1.7608126]
[1770135960612,2.39450191,2265.4,2264.0,7.02]
[1770135961014,2.39450191,2265.4,2263.4,4.425]
[1770135961219,2.39450191,2265.4,2263.5,2.595]
[1770135961724,2.39450191,2265.4,2263.1,1.85976864]
[1770135961918,2.39450191,2265.4,2263.2,7.019]
[1770135962415,2.39450191,2265.4,2263.0,2.595]
[1770135962416,2.39140236,2264.9,2263.0,2.595]
[1770135962617,2.39140236,2264.9,2263.1,2.01471554]
[1770135963014,2.39140236,2264.9,2263.0,2.595]
[1770135963217,2.39140236,2264.9,2263.1,2.01471554]
[1770135964216,2.39140236,2264.9,2263.3,2.01373801]
[1770135964522,2.39140236,2265.3,2263.5,2.23483801]
[1770135964719,2.39140236,2265.3,2263.6,2.594]
[1770135964921,2.39140236,2265.3,2263.6,7.017]
[1770135965121,2.39140236,2265.3,2263.6,9.03073801]
[1770135965322,2.39140236,2265.3,2263.7,2.01373801]
[1770135966117,2.39140236,2265.3,2263.3,1.9794348]
[1770135966318,2.39140236,2265.3,2263.4,7.016]
[1770135966514,2.39140236,2265.1,2263.1,2.594]
[1770135966715,2.39140236,2265.1,2263.1,4.5734348]
[1770135967323,2.39450191,2265.4,2263.6,1.9794348]
[1770135967518,2.39450191,2265.4,2264.1,1.9794348]
[1770135967716,2.39140236,2265.8,2264.6,1.9794348]
[1770135967921,2.39140236,2266.2,2264.8,2.2004048]
[1770135968117,2.39140236,2266.2,2264.6,2.593]
[1770135968317,0.22196456,2266.4,2262.2,0.22122]
[1770135968318,2.39140236,2264.9,2262.2,0.22122]
[1770135968518,2.39140236,2264.9,2262.2,2.20568733]
[1770135968716,2.39140236,2264.9,2262.4,1.98446733]
[1770135968917,2.39140236,2264.9,2262.8,1.98446733]
[1770135969317,2.39140236,2264.9,2262.8,0.005513]
[1770135969518,2.39140236,2264.7,2262.8,0.005513]
[1770135970122,2.39140236,2264.7,2262.8,1.84461537]
[1770135970421,2.39140236,2264.7,2262.8,2.06577537]
[1770135970827,2.39140236,2264.7,2263.0,1.83910237]
[1770135971024,2.39140236,2264.7,2262.9,0.22116]
[1770135971224,2.39140236,2263.7,2261.0,1.83910237]
[1770135971423,2.39140236,2263.6,2261.0,1.83910237]
[1770135971628,2.39140236,2263.6,2261.2,1.83910237]
[1770135971927,2.39140236,2263.6,2261.4,1.83910237]
[1770135972322,2.39140236,2263.6,2261.5,7.014]
[1770135972528,2.39140236,2263.6,2261.5,8.69974615]
[1770135973126,2.39140236,2263.6,2261.5,8.69423315]
[1770135973322,2.39140236,2263.6,2261.6,1.68023315]
[1770135973524,2.39140236,2263.6,2261.6,1.68574615]
[1770135973828,2.39140236,2263.6,2261.7,1.68574615]
[1770135974227,2.39140236,2263.6,2261.7,1.68023315]
[1770135976034,2.39140236,2263.6,2262.0,1.98792594]
[1770135976432,2.39140236,2263.6,2261.5,7.014]
[1770135976433,2.39140236,2263.6,2261.6,1.98792594]
[1770135978624,2.39140236,2263.6,2261.7,0.005513]
[1770135978823,2.39140236,2263.6,2261.7,1.98138045]
[1770135979029,2.39140236,2263.6,2261.7,1.97586745]
[1770135979226,2.39140236,2263.6,2261.8,1.98138045]
[1770135979433,2.39140236,2263.6,2261.8,1.97586745]
[1770135979633,2.39140236,2263.6,2262.0,1.97586745]
[1770135979832,2.39140236,2263.6,2262.2,1.97586745]
[1770135980135,2.39140236,2263.6,2262.0,7.015]
[1770135980430,2.39140236,2263.6,2262.3,0.005513]
[1770135980635,2.4116976,2264.0,2263.0,0.005513]
[1770135980927,2.4116976,2264.0,2263.0,0.00531049]
[1770135981331,2.4116976,2264.0,2263.0,0.01082349]
[1770135981726,2.4116976,2264.0,2263.1,0.005513]
[1770135982033,2.4116976,2264.8,2263.3,0.005513]
[1770135982333,2.4116976,2264.8,2263.5,1.94181289]
[1770135982532,2.4116976,2264.8,2263.4,0.005513]
[1770135982734,2.4116976,2264.8,2263.1,1.93629989]
[1770135982930,2.4116976,2264.8,2263.3,1.93629989]
[1770135983230,2.4116976,2264.8,2263.5,1.94181289]
[1770135983633,2.4116976,2264.8,2263.5,1.93629989]
[1770135983825,2.4116976,2264.8,2263.5,1.94181289]
[1770135984030,0.00551855,2264.9,2263.9,1.91284931]
[1770135984233,0.00551855,2264.9,2263.8,7.014]
[1770135984633,2.41721615,2264.9,2263.9,0.005513]
[1770135984828,2.41721615,2264.9,2263.8,7.014]
[1770135985535,2.41721615,2264.9,2263.5,7.014]
[1770135985729,2.41721615,2264.9,2263.5,8.92133631]
[1770135985934,0.00551855,2264.9,2264.0,1.91284931]
[1770135986128,0.00551855,2264.9,2263.6,1.89983921]
[1770135986326,0.00551855,2264.9,2263.9,0.005513]
[1770135986732,0.00551855,2264.9,2264.2,0.005513]
[1770135987040,2.4116976,2265.4,2264.3,2.593]
[1770135987234,2.4116976,2265.4,2264.4,4.421]
[1770135987430,2.4116976,2265.8,2264.9,0.005513]
[1770135987635,2.4116976,2265.8,2264.5,0.005513]
[1770135987934,2.4116976,2265.8,2264.4,8.86917127]
[1770135988130,2.41640722,2265.8,2264.5,1.86168427]
[1770135988335,0.00470962,2265.8,2264.5,1.85617127]
[1770135988532,0.00470962,2265.8,2264.4,9.09590817]
[1770135988734,2.41640722,2265.8,2264.5,7.017513]
[1770135988934,2.41640722,2265.8,2264.5,8.87368427]
[1770135989139,0.00470962,2265.8,2264.8,1.85617127]
[1770135989340,0.00470962,2265.8,2264.9,0.005513]
[1770135989540,0.00470962,2265.8,2265.0,0.005513]
[1770135989735,0.00470962,2265.8,2264.8,1.85617127]
[1770135989941,0.00470962,2265.8,2265.2,0.005513]
[1770135990336,2.41640722,2265.8,2264.6,0.22099]
[1770135990638,0.00470962,2265.8,2264.6,1.84105457]
[1770135991042,0.00470962,2265.8,2264.9,1.84105457]
[1770135991243,0.22196456,2266.4,2265.4,0.005513]
[1770135991444,2.63366216,2266.4,2265.3,2.597513]
[1770135991646,2.63366216,2266.4,2265.4,0.005513]
[1770135991940,2.63366216,2266.4,2265.5,0.005513]
[1770135992145,2.63813891,2266.4,2265.4,4.419]
[1770135992444,2.63813891,2266.4,2265.5,0.005513]
[1770135992838,2.63813891,2266.4,2265.4,4.419]
[1770135995237,2.63813891,2266.4,2265.4,4.424513]
[1770135995436,2.63813891,2266.4,2265.4,4.419]
[1770135996045,2.63813891,2266.4,2265.5,0.005513]
[1770135996439,2.63813891,2266.4,2265.4,4.419]
[1770135996647,2.63813891,2266.4,2264.4,0.2267369]
[1770135996849,2.21773132,2265.9,2262.7,3.83681282]
[1770135997046,38.24661768,2265.0,2262.4,0.22121]
[1770135997245,2.4116976,2264.8,2262.4,0.22121]
[1770135997442,2.4116976,2264.8,2262.5,2.4487714]
[1770135997648,2.4116976,2264.8,2262.8,0.22117]
[1770135997846,2.4116976,2264.8,2262.6,2.4487714]
[1770135997847,2.4116976,2264.8,2262.9,4.418]
[1770135998046,2.41507915,2264.8,2262.9,4.4230613]
[1770135998251,2.41507915,2264.8,2262.9,6.8718327]
[1770135998750,2.41507915,2264.8,2263.0,5.0397714]
[1770135998949,2.41507915,2264.8,2263.4,2.4487714]
[1770135999149,2.41507915,2264.8,2263.7,2.4487714]
[1770135999348,2.41507915,2264.8,2263.4,1.84350209]
[1770135999349,2.41507915,2264.8,2263.9,2.4487714]
[1770135999548,2.41507915,2264.8,2263.8,2.591]
[1770135999747,2.41507915,2264.8,2263.8,5.0397714]
[1770136000549,2.41507915,2264.8,2264.0,2.4487714]
[1770136000952,2.41507915,2264.8,2264.1,2.4487714]
[1770136001152,2.41507915,2264.8,2264.0,2.4487714]
[1770136001354,2.41507915,2264.8,2263.8,2.591]
[1770136001555,0.00338155,2264.8,2264.2,2.4487714]
[1770136001854,0.00338155,2264.8,2264.6,2.4487714]
[1770136002059,2.4116976,2265.2,2264.6,2.45438058]
[1770136002356,3.935,2266.0,2264.8,0.0370738]
[1770136002556,3.935,2266.0,2264.6,0.00560918]
[1770136003053,3.93846552,2266.0,2264.6,0.00560918]
[1770136003358,0.00346552,2266.0,2264.6,0.00560918]
[1770136003557,0.00346552,2266.0,2264.7,0.0370738]
[1770136003757,0.00346552,2266.0,2264.7,2.4803322]
[1770136004057,0.00346552,2266.0,2264.7,0.0370738]
[1770136004258,2.4116976,2265.9,2264.6,0.00560918]
[1770136004457,2.4116976,2265.8,2263.9,2.591]
[1770136004657,2.4116976,2265.7,2263.9,5.0342584]
[1770136004952,2.4116976,2265.7,2263.4,2.4432584]
[1770136005153,2.4116976,2265.4,2263.5,6.8612584]
[1770136005349,2.4116976,2265.2,2263.5,4.418]
[1770136005553,2.4116976,2265.2,2263.6,2.4432584]
[1770136005753,2.4116976,2265.2,2263.7,0.0370738]
[1770136006058,2.4116976,2265.2,2263.8,2.4432584]
[1770136006257,2.4116976,2265.2,2264.1,2.4432584]
[1770136006658,2.4116976,2265.2,2264.3,0.0370738]
[1770136006951,2.4116976,2265.2,2264.4,0.0370738]
[1770136007152,2.4116976,2265.2,2264.3,0.0370738]
[1770136007559,2.4116976,2265.2,2264.4,0.0370738]
[1770136007852,2.4116976,2265.2,2264.5,0.0370738]
[1770136008052,38.24661768,2265.7,2264.6,0.0370738]
[1770136008053,2.4116976,2265.5,2264.6,0.0370738]
[1770136008249,2.4116976,2265.5,2264.7,0.0370738]
[1770136008452,2.4116976,2265.5,2264.6,0.0370738]
[1770136008659,2.4116976,2265.5,2264.7,0.0370738]
[1770136008850,0.22196456,2266.4,2265.2,2.4432584]
[1770136009053,0.22196456,2266.4,2264.4,4.418]
[1770136009054,2.4116976,2267.6,2266.3,2.47686668]
[1770136009251,2.4116976,2267.6,2264.8,4.89443871]
[1770136009252,2.4116976,2267.5,2265.7,2.4432584]
[1770136009450,2.4116976,2267.2,2265.7,2.4432584]
[1770136009656,2.4116976,2267.2,2265.9,0.03360828]
[1770136009853,2.4116976,2267.2,2266.1,0.03360828]
[1770136010058,2.41685839,2267.2,2266.2,0.03360828]
[1770136010255,2.41685839,2267.2,2265.9,0.00471145]
[1770136010555,0.00516079,2267.2,2266.2,2.50999499]
[1770136010761,0.00516079,2267.2,2266.7,0.03360828]
[1770136010958,0.00516079,2267.2,2267.1,0.03360828]
[1770136011257,0.00516079,2267.2,2266.8,0.03360828]
[1770136011656,2.51609106,2267.1,2266.9,0.03360828]
[1770136011857,0.00516079,2267.2,2266.2,6.92799499]
[1770136012058,0.00516079,2267.2,2266.3,2.50999499]
[1770136014555,0.00516079,2267.2,2265.9,0.00471145]
[1770136014556,2.38487285,2267.2,2265.9,2.3389977]
[1770136015058,0.00516079,2267.2,2265.9,2.3389977]
[1770136015257,0.00516079,2267.2,2266.0,0.22086]
[1770136015458,0.00516079,2267.2,2266.1,2.33428625]
[1770136019862,0.00516079,2267.2,2266.1,2.55512625]
[1770136020061,0.00516079,2267.2,2266.1,2.33428625]
[1770136020262,2.38487285,2267.2,2266.1,2.33428625]
[1770136020462,0.00516079,2267.2,2266.1,2.33428625]
[1770136020663,0.00516079,2267.2,2266.3,2.55511625]
[1770136021061,2.37971206,2267.6,2266.3,2.55511625]
[1770136021262,2.37971206,2268.2,2266.3,2.55511625]
[1770136021466,2.37971206,2268.2,2266.5,2.33428625]
[1770136021766,2.37971206,2268.2,2266.7,2.33428625]
[1770136022166,2.38393746,2268.2,2266.7,2.33428625]
[1770136022365,0.0042254,2268.2,2266.9,2.55505625]
[1770136022563,2.37971206,2268.9,2267.2,2.33428625]
[1770136022761,2.37971206,2269.3,2267.9,2.33428625]
[1770136023567,2.38529229,2269.3,2267.9,2.33879413]
[1770136024661,0.00558023,2269.3,2268.1,2.55493625]
[1770136024959,2.37971206,2270.0,2268.4,2.33428625]
[1770136025365,2.37971206,2270.4,2268.6,2.33428625]
[1770136025566,2.37971206,2270.4,2268.5,0.22061]
[1770136025567,2.74085935,2270.4,2268.8,2.33428625]
[1770136025766,2.7451507,2270.4,2268.8,2.33428625]
[1770136026463,2.7451507,2270.4,2268.0,2.33428625]
[1770136027666,2.37971206,2270.2,2268.0,2.33428625]
[1770136027968,2.37971206,2270.0,2268.0,2.33428625]
[1770136028267,2.37971206,2269.8,2267.9,7.00550788]
[1770136028468,2.37971206,2269.8,2268.0,2.33428625]
[1770136030172,2.37971206,2269.6,2267.9,9.33979413]
[1770136030372,2.37971206,2269.6,2268.0,2.33428625]
[1770136031265,2.37971206,2269.6,2267.9,7.00550788]
[1770136031668,2.37971206,2269.6,2267.9,4.41750788]
[1770136032072,2.37971206,2269.6,2268.0,2.33428625]
[1770136032473,2.37971206,2269.6,2268.0,2.55494625]
[1770136034375,2.37971206,2269.6,2268.0,2.33428625]
[1770136035172,2.37971206,2269.6,2267.9,4.41750788]
[1770136035173,2.37971206,2269.6,2267.9,2.33879413]
[1770136035377,2.37971206,2269.6,2267.9,2.55946413]
[1770136035580,2.37971206,2269.6,2268.1,2.33428625]
[1770136035772,2.37971206,2269.6,2268.0,2.587]
[1770136035975,2.37971206,2269.1,2267.9,0.00450788]
[1770136036179,2.37971206,2269.0,2267.1,6.74528625]
[1770136036477,2.37971206,2269.0,2267.2,2.33428625]
[1770136036878,2.37971206,2268.9,2267.2,2.33428625]
[1770136037279,2.37971206,2268.8,2267.2,2.33428625]
[1770136037680,2.38302068,2268.8,2267.2,2.33800435]
[1770136038181,2.37971206,2268.7,2267.2,2.33800435]
[1770136038479,4.95745346,2268.7,2267.2,2.33800435]
[1770136038877,2.37971206,2268.7,2267.5,2.33428625]
[1770136039377,2.37971206,2268.6,2267.2,2.33800435]
[1770136039581,2.37971206,2268.6,2267.2,2.55874435]
[1770136040380,2.37971206,2268.5,2267.2,0.0037181]
[1770136040574,2.39477517,2268.4,2267.2,0.0037181]
[1770136040775,2.39477517,2268.3,2266.4,2.47297914]
[1770136040982,2.39477517,2267.6,2266.4,2.47297914]
[1770136041183,4.97251657,2267.6,2266.1,2.47297914]
[1770136041378,2.39477517,2267.4,2266.1,2.47297914]
[1770136041983,2.39477517,2267.4,2266.1,2.47612445]
[1770136042876,2.39477517,2267.1,2265.7,6.88397914]
[1770136043482,2.39477517,2267.0,2265.7,6.88397914]
[1770136043683,2.39477517,2267.0,2265.7,4.411]
[1770136043880,2.39942379,2267.0,2265.7,4.41535921]
[1770136044078,2.39477517,2266.8,2265.7,0.00435921]
[1770136044281,2.39477517,2266.6,2265.0,2.47297914]
[1770136045380,2.39477517,2266.6,2265.0,2.69835094]
[1770136045780,2.39477517,2266.6,2265.4,2.47297914]
[1770136045986,2.39942379,2267.0,2265.4,2.47297914]
[1770136047188,2.39942379,2267.0,2265.4,2.69388914]
[1770136047783,0.00464862,2267.0,2265.4,2.69388914]
[1770136047984,2.39942379,2267.0,2265.4,2.69388914]
[1770136048285,0.00464862,2267.0,2265.8,2.47297914]
[1770136048482,2.39477517,2268.1,2266.6,2.69376914]
[1770136048688,2.39477517,2268.1,2266.8,2.47297914]
[1770136048888,2.39477517,2268.1,2266.8,2.69375914]
[1770136049587,2.4003086,2268.1,2266.8,0.00416378]
[1770136050291,2.39477517,2267.9,2266.8,0.00416378]
[1770136050488,2.39477517,2267.9,2266.1,2.47297914]
[1770136050689,2.39477517,2267.8,2266.1,2.47297914]
[1770136050888,2.39477517,2267.6,2265.9,7.22187]
[1770136051091,2.39477517,2267.5,2266.0,2.47297914]
[1770136051490,2.39477517,2267.5,2266.0,2.47839454]
[1770136052790,38.24661768,2267.9,2266.6,2.47297914]
[1770136052791,2.39477517,2267.9,2266.6,2.47297914]
[1770136053986,2.39477517,2267.9,2266.1,2.47297914]
[1770136054192,2.39477517,2267.8,2266.1,2.47297914]
[1770136054388,2.39477517,2267.6,2266.1,2.47297914]
[1770136054594,2.39477517,2267.6,2266.0,0.0054154]
[1770136055096,4.97251657,2267.6,2266.0,0.0054154]
[1770136055294,2.39477517,2267.5,2266.0,0.0054154]
[1770136056394,2.39477517,2267.4,2266.0,0.0054154]
[1770136057190,2.39477517,2267.3,2266.0,0.0054154]
[1770136057396,2.39477517,2267.1,2266.0,0.0054154]
[1770136059200,2.39477517,2267.1,2266.0,2.47839454]
[1770136059398,2.5777414,2267.4,2266.0,2.47839454]
[1770136059399,2.39477517,2267.4,2266.0,2.47839454]
[1770136059596,2.39477517,2267.4,2266.2,2.69381914]
[1770136059800,2.39477517,2267.4,2266.4,2.47297914]
[1770136060104,2.39477517,2267.8,2266.4,2.47297914]
[1770136060502,2.39477517,2267.8,2266.1,2.47297914]
[1770136060705,2.39477517,2267.5,2266.1,2.47297914]
[1770136061303,2.39477517,2267.5,2266.3,2.47297914]
[1770136062002,2.5777414,2268.0,2266.7,2.47297914]
[1770136062303,2.4003086,2268.1,2266.8,2.69374914]
[1770136063002,2.4003086,2268.1,2266.5,2.47297914]
[1770136063405,2.39477517,2267.9,2266.5,2.47297914]
[1770136063603,2.39477517,2267.6,2266.4,7.003]
[1770136063805,2.39477517,2267.5,2266.4,4.414]
[1770136064005,2.39477517,2267.4,2266.4,4.414]
[1770136064811,2.39477517,2267.3,2266.4,4.414]
[1770136066212,2.39477517,2267.2,2266.4,4.414]
[1770136067413,2.39477517,2267.1,2266.4,4.414]
[1770136070018,2.5777414,2267.3,2266.4,6.88697914]
[1770136070619,2.41767048,2267.2,2266.4,4.414]
[1770136071115,2.5777414,2267.3,2266.5,2.37019505]
[1770136071415,6.338,2269.0,2267.6,0.2207]
[1770136071616,4.414,2270.4,2268.1,0.22064]
[1770136071814,4.414,2270.4,2267.4,4.414]
[1770136071815,45.259,2270.3,2268.6,2.63244823]
[1770136072114,0.29719201,2270.1,2268.7,4.79965506]
[1770136072318,4.4112,2269.6,2268.4,2.63244823]
[1770136072615,4.4112,2269.4,2268.5,7.42180531]
[1770136072819,4.4112,2269.0,2268.4,0.00439857]
[1770136073316,3.48,2269.3,2268.4,0.00439857]
[1770136073317,2.54419435,2268.6,2268.4,0.00439857]